Workbook

Sheet Instructions
A1: Australian Journal of Experimental Agriculture, 1998, 38 617-22
A2: Mick O'Neill & Peter Thomson
A3: Biometry Unit, Faculty of Agriculture, University of Sydney, Australia 2006 (MickO@agric.usyd.edu.au)
A4: Updated by Maryann O'Donnell, August 2004
A6: 1. In the worksheet Power for specified means you can determine the power for a given scenario of treatment means
A7: in a proposed one factor experiment. Change the formula for df in cell E9 for a different design.
A9: Choice 1: | B9: Provide the proposed sample sizes and anticipated set of treatment means;
B10: the power is calculated automatically provided an estimate of variance is available.
A12: 2. In the worksheet Power for minimum difference you can determine the power, sample size or minimum detectable difference
A13: in a proposed one factor experiment.
A14: An estimate of variance is required in C11. Change the formula for Error df in cell C16 for a different design.
A16: Choice 2: | B16: Provide the proposed sample size and anticipated smallest mean difference;
B17: the power is calculated automatically
A19: Choice 3: | B19: Provide the desired power and anticipated smallest mean difference of your test;
B20: to obtain the required sample size (per treatment), run Tools/Solver. You need to:
B21: • ensure that C18 is entered in the Set Target Cell: box
B22: • enter your desired power in the Value of: box
B23: • ensure that C9 is entered in the By Changing Cells: box
B24: • click on Solve. The solution in C9 will show as an integer but it is probably fractional.
B25: Replace it by its solved value and one more than its solved value, and check the power.
A27: Choice 4: | B27: Provide the desired power and sample size of your test;
B28: to obtain the required minimum detectable difference:
B29: • enter your proposed sample size in cell C9. Then run Tools/Solver. You need to:
B30: • ensure that C18 is entered in the Set Target Cell: box
B31: • enter your desired power in the Value of: box
B32: • ensure that C11 is entered in the By Changing Cells: box
B33: • click on Solve. The solution in C12 is the required minimum detectable difference
B34: • select the approprite design number for CRD, RCBD, or Latin Square.
A36: 3. In the worksheet Power for a given ANOVA you can determine the power for the F-test of an experiment already conducted.
A38: Choice 5: | B38: Provide the information from your ANOVA (d.f., Mean Squares and significance level)
B39: the power of the F-test is calculated automatically. Works for any experimental design.

Sheet Power for specified means
A1: Choice 1: | B1: Calculation of the power of a proposed one factor (unblocked) experiment
A3: treatment | B3: mean | C3: replicate
A4: =IF(ROW(A4)<=t+3,ROW(A4)-3,IF(A3=t,"Enter means and replicates above","")) -> 1 | B4: 3 | C4: 10 | D4: Enter first the number of treatments in your proposed experiment: | E4: 4
A5: 2 | B5: 6 | C5: 10 | D5: The Treatment df for your proposed ANOVA are: | E5: =t-1 -> 3
A6: =IF(ROW(A6)<=t+3,ROW(A6)-3,IF(A5=t,"Enter means and replicates above","")) -> 3 | B6: 7 | C6: 10 | D6: Enter an estimate of the variance of each treatment: | E6: 7
A7: 4 | B7: 8 | C7: 10 | D7: Choose the level of significance for your proposed F-test: | E7: 0.05
A8: =IF(ROW(A8)<=t+3,ROW(A8)-3,IF(A7=t,"Enter means and replicates above","")) -> Enter means and replicates above | D8: Non centrality F-parameter (l) | E8: =(SUMPRODUCT(B4:B34^2,C4:C34)-SUMPRODUCT(B4:B34,C4:C34)^2/SUM(C4:C34))/E6 -> 20
A9: =IF(ROW(A8)<=t+3,ROW(A8)-3,IF(A7=t,"and delete entries below","")) -> and delete entries below | D9: The Error df for your proposed ANOVA are: | E9: =SUM((C4:C33)*(ROW(C4:C33)-3<=t))-$E$4 -> 36
A10: =IF(ROW(A10)<=t+3,ROW(A10)-3,IF(A9=t,"Enter means and replicates above","")) ->  | D10: Your ANOVA Fcrit value is: | E10: =FINV($E$7,$E$4-1,$E$9) -> 2.866265557
D11: The power of your ANOVA F-test is: | E11: =powermd(E8,E5,E9,E10) -> 0.9581855429
F20: F-dist (means equal)
A21: =IF(ROW(A21)<=t+3,ROW(A21)-3,IF(A20=t,"Enter means and replicates above","")) ->  | F21: F-dist (means different)
F22: Fcrit
D32: significance level is the area under the blue curve to the right of Fcrit
D34: power is the area under the brown curve to the right of Fcrit
E98: 6 | F98: 12 | G98: 18
E99: 500 | F99: Central F | G99: Non-central F | H99: Red line
E100: 0 | F100: =CentralF($E$5,$E$9,E100) -> 0 | G100: =NonCentralF($E$5,$E$9,$E$8,E100) -> 0 | H100: =$E$10 -> 2.866265557 | I100: 0
E101: =E100+IF($E$11<1/3,$E$98/$E$99,IF($E$11<2/3,$F$98/$E$99,$G$98/$E$99)) -> 0.036 | F101: =CentralF($E$5,$E$9,E101) -> 0.3786680658 | G101: =NonCentralF($E$5,$E$9,$E$8,E101) -> 2.474801718e-05 | H101: =$E$10 -> 2.866265557 | I101: =MAX(I102:I103) -> 0.05498336953
E102: 0.072 | F102: 0.5052208312 | G102: 4.56427311e-05 | I102: =NonCentralF($E$5,$E$9,$E$8,E10) -> 0.04753363891
E103: 0.108 | F103: 0.5838613955 | G103: 7.078527983e-05 | I103: =CentralF($E$5,$E$9,E10) -> 0.05498336953
E104: 0.144 | F104: 0.636263305 | G104: 0.0001011832018
E105: 0.18 | F105: 0.6714660412 | G105: 0.0001375341882
E106: 0.216 | F106: 0.6944177757 | G106: 0.000180466595
E107: 0.252 | F107: 0.7082293565 | G107: 0.0002305902078
E108: 0.288 | F108: 0.7150274491 | G108: 0.0002885109952
E109: 0.324 | F109: 0.7163487044 | G109: 0.0003548356722
E110: 0.36 | F110: 0.7133472535 | G110: 0.0004301726696
E111: 0.396 | F111: 0.7069145949 | G111: 0.0005151316371
E112: 0.432 | F112: 0.6977538922 | G112: 0.0006103222827
E113: 0.468 | F113: 0.6864286062 | G113: 0.0007163529126
E114: 0.504 | F114: 0.6733957533 | G114: 0.0008338288151
E115: 0.54 | F115: 0.6590294784 | G115: 0.0009633505751
E116: 0.576 | F116: 0.6436382641 | G116: 0.001105512383
E117: 0.612 | F117: 0.6274778118 | G117: 0.001260900344
E118: 0.648 | F118: 0.6107608849 | G118: 0.00143009081
E119: 0.684 | F119: 0.5936649695 | G119: 0.001613648764
E120: 0.72 | F120: 0.5763383255 | G120: 0.001812126244
E121: 0.756 | F121: 0.5589048321 | G121: 0.00202606082
E122: 0.792 | F122: 0.541467911 | G122: 0.002255974141
E123: 0.828 | F123: 0.5241137357 | G123: 0.002502370541
E124: 0.864 | F124: 0.5069138784 | G124: 0.002765735716
E125: 0.9 | F125: 0.4899275104 | G125: 0.003046535468
E126: 0.936 | F126: 0.4732032433 | G126: 0.003345214538
E127: 0.972 | F127: 0.4567806784 | G127: 0.003662195496
E128: 1.008 | F128: 0.4406917171 | G128: 0.003997877726
E129: 1.044 | F129: 0.4249616743 | G129: 0.004352636481
E130: 1.08 | F130: 0.4096102282 | G130: 0.004726822019
E131: 1.116 | F131: 0.3946522327 | G131: 0.005120758824
E132: 1.152 | F132: 0.3800984149 | G132: 0.005534744903
E133: 1.188 | F133: 0.3659559755 | G133: 0.005969051166
E134: 1.224 | F134: 0.3522291062 | G134: 0.006423920882
E135: 1.26 | F135: 0.3389194367 | G135: 0.006899569224
E136: 1.296 | F136: 0.3260264221 | G136: 0.007396182878
E137: 1.332 | F137: 0.3135476773 | G137: 0.007913919741
E138: 1.368 | F138: 0.301479268 | G138: 0.008452908686
E139: 1.404 | F139: 0.2898159632 | G139: 0.009013249412
E140: 1.44 | F140: 0.2785514534 | G140: 0.009595012347
E141: 1.476 | F141: 0.267678541 | G141: 0.01019823864
E142: 1.512 | F142: 0.2571893053 | G142: 0.01082294023
E143: 1.548 | F143: 0.2470752454 | G143: 0.01146909992
E144: 1.584 | F144: 0.2373274046 | G144: 0.01213667162
E145: 1.62 | F145: 0.2279364774 | G145: 0.01282558052
E146: 1.656 | F146: 0.2188929029 | G146: 0.01353572345
E147: 1.692 | F147: 0.2101869451 | G147: 0.01426696923
E148: 1.728 | F148: 0.2018087614 | G148: 0.01501915904
E149: 1.764 | F149: 0.1937484631 | G149: 0.01579210692
E150: 1.8 | F150: 0.1859961653 | G150: 0.01658560026
E151: 1.836 | F151: 0.1785420311 | G151: 0.01739940037
E152: 1.872 | F152: 0.171376308 | G152: 0.01823324304
E153: 1.908 | F153: 0.1644893592 | G153: 0.01908683922
E154: 1.944 | F154: 0.15787169 | G154: 0.01995987567
E155: 1.98 | F155: 0.1515139692 | G155: 0.02085201566
E156: 2.016 | F156: 0.145407047 | G156: 0.02176289971
E157: 2.052 | F157: 0.1395419698 | G157: 0.02269214635
E158: 2.088 | F158: 0.1339099914 | G158: 0.02363935293
E159: 2.124 | F159: 0.1285025825 | G159: 0.02460409641
E160: 2.16 | F160: 0.1233114368 | G160: 0.0255859342
E161: 2.196 | F161: 0.1183284764 | G161: 0.02658440502
E162: 2.232 | F162: 0.1135458547 | G162: 0.02759902977
E163: 2.268 | F163: 0.1089559583 | G163: 0.02862931238
E164: 2.304 | F164: 0.104551407 | G164: 0.02967474073
E165: =E164+IF($E$11<1/3,$E$98/$E$99,IF($E$11<2/3,$F$98/$E$99,$G$98/$E$99)) -> 2.34 | F165: =CentralF($E$5,$E$9,E165) -> 0.1003250536 | G165: =NonCentralF($E$5,$E$9,$E$8,E165) -> 0.03073478754
E166: 2.376 | F166: 0.09626998207 | G166: 0.03180891128
E167: 2.412 | F167: 0.09237950529 | G167: 0.03289655708
E168: 2.448 | F168: 0.08864716203 | G168: 0.03399715762
E169: 2.484 | F169: 0.08506671335 | G169: 0.03511013407
E170: 2.52 | F170: 0.08163213855 | G170: 0.03623489697
E171: 2.556 | F171: 0.07833763077 | G171: 0.03737084719
E172: 2.592 | F172: 0.07517759224 | G172: 0.03851737676
E173: 2.628 | F173: 0.07214662932 | G173: 0.03967386982
E174: 2.664 | F174: 0.06923954733 | G174: 0.04083970348
E175: 2.7 | F175: 0.06645134524 | G175: 0.04201424869
E176: 2.736 | F176: 0.06377721029 | G176: 0.04319687114
E177: 2.772 | F177: 0.06121251249 | G177: 0.04438693207
E178: 2.808 | F178: 0.05875279915 | G178: 0.04558378913
E179: 2.844 | F179: 0.05639378939 | G179: 0.0467867972
E180: 2.88 | F180: 0.05413136867 | G180: 0.04799530922
E181: 2.916 | F181: 0.05196158334 | G181: 0.04920867694
E182: 2.952 | F182: 0.04988063529 | G182: 0.05042625172
E183: 2.988 | F183: 0.04788487666 | G183: 0.05164738527
E184: 3.024 | F184: 0.04597080462 | G184: 0.05287143041
E185: 3.06 | F185: 0.04413505627 | G185: 0.05409774176
E186: 3.096 | F186: 0.04237440364 | G186: 0.05532567646
E187: 3.132 | F187: 0.0406857488 | G187: 0.0565545948
E188: 3.168 | F188: 0.03906611906 | G188: 0.05778386095
E189: 3.204 | F189: 0.03751266238 | G189: 0.05901284349
E190: 3.24 | F190: 0.03602264277 | G190: 0.06024091613
E191: 3.276 | F191: 0.03459343597 | G191: 0.06146745818
E192: 3.312 | F192: 0.03322252511 | G192: 0.06269185523
E193: 3.348 | F193: 0.03190749664 | G193: 0.06391349958
E194: 3.384 | F194: 0.03064603625 | G194: 0.06513179086
E195: 3.42 | F195: 0.02943592504 | G195: 0.06634613643
E196: 3.456 | F196: 0.02827503575 | G196: 0.06755595193
E197: 3.492 | F197: 0.02716132913 | G197: 0.06876066168
E198: 3.528 | F198: 0.02609285042 | G198: 0.06995969913
E199: 3.564 | F199: 0.02506772599 | G199: 0.07115250724
E200: 3.6 | F200: 0.02408416008 | G200: 0.07233853887
E201: 3.636 | F201: 0.02314043164 | G201: 0.07351725717
E202: 3.672 | F202: 0.02223489131 | G202: 0.07468813585
E203: 3.708 | F203: 0.02136595847 | G203: 0.07585065954
E204: 3.744 | F204: 0.02053211848 | G204: 0.07700432409
E205: 3.78 | F205: 0.01973191994 | G205: 0.07814863678
E206: 3.816 | F206: 0.0189639721 | G206: 0.07928311664
E207: 3.852 | F207: 0.01822694238 | G207: 0.08040729463
E208: 3.888 | F208: 0.0175195539 | G208: 0.08152071386
E209: 3.924 | F209: 0.01684058324 | G209: 0.08262292979
E210: 3.96 | F210: 0.0161888582 | G210: 0.08371351039
E211: 3.996 | F211: 0.01556325563 | G211: 0.08479203626
E212: 4.032 | F212: 0.01496269946 | G212: 0.08585810082
E213: 4.068 | F213: 0.01438615864 | G213: 0.08691131037
E214: 4.104 | F214: 0.01383264534 | G214: 0.0879512842
E215: 4.14 | F215: 0.01330121308 | G215: 0.08897765467
E216: 4.176 | F216: 0.01279095503 | G216: 0.08999006727
E217: 4.212 | F217: 0.01230100231 | G217: 0.09098818068
E218: 4.248 | F218: 0.01183052245 | G218: 0.09197166674
E219: 4.284 | F219: 0.01137871779 | G219: 0.09294021053
E220: 4.32 | F220: 0.01094482407 | G220: 0.09389351033
E221: 4.356 | F221: 0.01052810897 | G221: 0.09483127763
E222: 4.392 | F222: 0.01012787082 | G222: 0.09575323705
E223: 4.428 | F223: 0.009743437245 | G223: 0.09665912637
E224: 4.464 | F224: 0.009374163976 | G224: 0.0975486964
E225: 4.5 | F225: 0.009019433637 | G225: 0.09842171096
E226: 4.536 | F226: 0.008678654616 | G226: 0.09927794679
E227: 4.572 | F227: 0.008351259973 | G227: 0.1001171934
E228: 4.608 | F228: 0.008036706398 | G228: 0.1009392532
E229: =E228+IF($E$11<1/3,$E$98/$E$99,IF($E$11<2/3,$F$98/$E$99,$G$98/$E$99)) -> 4.644 | F229: =CentralF($E$5,$E$9,E229) -> 0.007734473208 | G229: =NonCentralF($E$5,$E$9,$E$8,E229) -> 0.1017439409
E230: 4.68 | F230: 0.007444061396 | G230: 0.1025310841
E231: 4.716 | F231: 0.007164992708 | G231: 0.1033005223
E232: 4.752 | F232: 0.006896808768 | G232: 0.1040521076
E233: 4.788 | F233: 0.006639070235 | G233: 0.104785704
E234: 4.824 | F234: 0.006391356001 | G234: 0.1055011874
E235: 4.86 | F235: 0.006153262417 | G235: 0.1061984456
E236: 4.896 | F236: 0.005924402556 | G236: 0.1068773777
E237: 4.932 | F237: 0.005704405508 | G237: 0.1075378946
E238: 4.968 | F238: 0.0054929157 | G238: 0.1081799181
E239: 5.004 | F239: 0.005289592249 | G239: 0.1088033812
E240: 5.04 | F240: 0.005094108345 | G240: 0.1094082276
E241: 5.076 | F241: 0.004906150652 | G241: 0.1099944119
E242: 5.112 | F242: 0.004725418746 | G242: 0.1105618988
E243: 5.148 | F243: 0.004551624564 | G243: 0.1111106636
E244: 5.184 | F244: 0.004384491887 | G244: 0.1116406914
E245: 5.22 | F245: 0.004223755842 | G245: 0.1121519772
E246: 5.256 | F246: 0.004069162422 | G246: 0.1126445256
E247: 5.292 | F247: 0.00392046803 | G247: 0.1131183506
E248: 5.328 | F248: 0.003777439043 | G248: 0.1135734753
E249: 5.364 | F249: 0.003639851392 | G249: 0.1140099319
E250: 5.4 | F250: 0.003507490159 | G250: 0.114427761
E251: 5.436 | F251: 0.003380149197 | G251: 0.1148270121
E252: 5.472 | F252: 0.00325763076 | G252: 0.1152077428
E253: 5.508 | F253: 0.003139745153 | G253: 0.1155700186
E254: 5.544 | F254: 0.003026310394 | G254: 0.1159139131
E255: 5.58 | F255: 0.002917151892 | G255: 0.1162395073
E256: 5.616 | F256: 0.002812102138 | G256: 0.1165468896
E257: 5.652 | F257: 0.00271100041 | G257: 0.1168361555
E258: 5.688 | F258: 0.00261369249 | G258: 0.1171074075
E259: 5.724 | F259: 0.002520030394 | G259: 0.1173607549
E260: 5.76 | F260: 0.002429872111 | G260: 0.1175963132
E261: 5.796 | F261: 0.002343081355 | G261: 0.1178142042
E262: 5.832 | F262: 0.00225952733 | G262: 0.118014556
E263: 5.868 | F263: 0.002179084499 | G263: 0.1181975021
E264: 5.904 | F264: 0.002101632366 | G264: 0.1183631818
E265: 5.94 | F265: 0.00202705527 | G265: 0.1185117398
E266: 5.976 | F266: 0.001955242185 | G266: 0.1186433259
E267: 6.012 | F267: 0.001886086524 | G267: 0.1187580949
E268: 6.048 | F268: 0.001819485962 | G268: 0.118856206
E269: 6.084 | F269: 0.001755342255 | G269: 0.1189378235
E270: 6.12 | F270: 0.001693561077 | G270: 0.1190031154
E271: 6.156 | F271: 0.001634051854 | G271: 0.1190522544
E272: 6.192 | F272: 0.001576727613 | G272: 0.1190854166
E273: 6.228 | F273: 0.001521504834 | G273: 0.1191027822
E274: 6.264 | F274: 0.001468303307 | G274: 0.1191045346
E275: 6.3 | F275: 0.001417045997 | G275: 0.1190908609
E276: 6.336 | F276: 0.001367658917 | G276: 0.119061951
E277: 6.372 | F277: 0.001320070998 | G277: 0.1190179979
E278: 6.408 | F278: 0.001274213975 | G278: 0.1189591975
E279: 6.444 | F279: 0.00123002227 | G279: 0.1188857482
E280: 6.48 | F280: 0.001187432883 | G280: 0.1187978506
E281: 6.516 | F281: 0.001146385289 | G281: 0.1186957079
E282: 6.552 | F282: 0.001106821336 | G282: 0.1185795253
... 318 more rows

Sheet Power for minimum difference
B1: Calculation of the
A2: Choice 2: | B2: · power
A3: Choice 3: | B3: · sample size per treatment
A4: Choice 4: | B4: · minimum detectable difference
B5: of a proposed one factor (unblocked) experiment
D6: Design Number | F6: 0 | G6: for CRD
B7: Enter the number of treatments in your proposed experiment: | C7: 4 | D7: 0 | E7: In D7, enter: | F7: 1 | G7: for RCBD
B8: The Treatment df for your proposed ANOVA are: | C8: =C7-1 -> 3 | D8: =IF(D7>2,"Invalid design number!","") ->  | F8: 2 | G8: for Latin Square design
B9: Enter the proposed number of replicates (or blocks) per treatment: | C9: 8 | E9: =IF(D7=2,"Type","") ->  | F9: =IF(D7=2,"=C9","") ->  | G9: =IF(D7=2,"in C7","") -> 
B11: Enter an estimate of the variance of each treatment (e.g. from a previous ANOVA): | C11: 1
B12: Enter the smallest difference to detect between the 2 most different means: | C12: 2
B13: Choose the level of significance for your proposed F-test: | C13: 0.05
B15: Non centrality F-parameter (l) | C15: =C9*C12^2/2/C11 -> 16
B16: The Error df for your proposed ANOVA are: | C16: =($C$7-D7)*($C$9-1) -> 28
B17: Your ANOVA Fcrit value is: | C17: =FINV($C$13,$C$7-1,$C$7*($C$9-1)) -> 2.946685269
B18: The power of your ANOVA F-test is: | C18: =powermd(C15,C8,C16,C17) -> 0.8935978428
D19: see graph below
D26: F-dist (means equal)
D27: F-dist (means different)
D28: Fcrit
B39: significance level is the area under the blue curve to the right of Fcrit
B41: power is the area under the brown curve to the right of Fcrit
C98: 6 | D98: 12 | E98: 18
C99: 500 | D99: Central F | E99: Non-central F | F99: Red line
C100: 0 | D100: =CentralF($C$8,$C$16,C100) -> 0 | E100: =NonCentralF($C$8,$C$16,$C$15,C100) -> 0 | F100: =$C$17 -> 2.946685269 | G100: 0
C101: =C100+IF($C$18<1/3,$C$98/$C$99,IF($C$18<2/3,$D$98/$C$99,$E$98/$C$99)) -> 0.036 | D101: =CentralF($C$8,$C$16,C101) -> 0.3803572502 | E101: =NonCentralF($C$8,$C$16,$C$15,C101) -> 0.0001724526154 | F101: =$C$17 -> 2.946685269 | G101: =MAX(G102:G103) -> 0.09412609346
C102: =C101+IF($C$18<1/3,$C$98/$C$99,IF($C$18<2/3,$D$98/$C$99,$E$98/$C$99)) -> 0.072 | D102: 0.5068639679 | E102: 0.0003017488788 | G102: =NonCentralF($C$8,$C$16,$C$15,F101) -> 0.09412609346
C103: 0.108 | D103: 0.5850869253 | E103: 0.0004473362159 | G103: =CentralF($C$8,$C$16,F101) -> 0.05195258233
C104: 0.144 | D104: 0.6368996027 | E104: 0.0006144487576
C105: 0.18 | D105: 0.6714355481 | E105: 0.0008056326096
C106: 0.216 | D106: 0.6936968071 | E106: 0.001022690388
C107: 0.252 | D107: 0.7068276057 | E107: 0.001267112696
C108: 0.288 | D108: 0.7129758869 | E108: 0.001540215379
C109: 0.324 | D109: 0.7136918099 | E109: 0.001843191955
C110: 0.36 | D110: 0.7101377676 | E110: 0.002177135744
C111: 0.396 | D111: 0.7032098648 | E111: 0.002543049619
C112: 0.432 | D112: 0.69361328 | E112: 0.002941850237
C113: 0.468 | D113: 0.6819116378 | E113: 0.003374369733
C114: 0.504 | D114: 0.6685607985 | E114: 0.00384135621
C115: 0.54 | D115: 0.6539328193 | E115: 0.004343473736
C116: 0.576 | D116: 0.6383334529 | E116: 0.004881302195
C117: 0.612 | D117: 0.6220152446 | E117: 0.005455337176
C118: 0.648 | D118: 0.6051875406 | E118: 0.006065990001
C119: 0.684 | D119: 0.5880242712 | E119: 0.006713587961
C120: 0.72 | D120: 0.5706700964 | E120: 0.007398374767
C121: 0.756 | D121: 0.5532453211 | E121: 0.008120511243
C122: 0.792 | D122: 0.5358498714 | E122: 0.008880076242
C123: 0.828 | D123: 0.5185665409 | E123: 0.00967706781
C124: 0.864 | D124: 0.5014636657 | E124: 0.01051140455
C125: 0.9 | D125: 0.4845973433 | E125: 0.0113829272
C126: 0.936 | D126: 0.4680132853 | E126: 0.01229140043
C127: 0.972 | D127: 0.4517483738 | E127: 0.01323651477
C128: 1.008 | D128: 0.4358319739 | E128: 0.01421788873
C129: 1.044 | D129: 0.4202870473 | E129: 0.01523507108
C130: 1.08 | D130: 0.4051310981 | E130: 0.01628754326
C131: 1.116 | D131: 0.3903769808 | E131: 0.01737472188
C132: 1.152 | D132: 0.376033592 | E132: 0.01849596137
C133: 1.188 | D133: 0.362106463 | E133: 0.01965055667
C134: 1.224 | D134: 0.3485982699 | E134: 0.02083774607
C135: 1.26 | D135: 0.3355092723 | E135: 0.02205671404
C136: 1.296 | D136: 0.322837692 | E136: 0.02330659411
C137: 1.332 | D137: 0.3105800394 | E137: 0.0245864719
C138: 1.368 | D138: 0.2987313961 | E138: 0.02589538804
C139: 1.404 | D139: 0.2872856586 | E139: 0.02723234115
C140: 1.44 | D140: 0.2762357493 | E140: 0.0285962909
C141: 1.476 | D141: 0.2655737986 | E141: 0.02998616095
C142: 1.512 | D142: 0.2552913024 | E142: 0.03140084195
C143: 1.548 | D143: 0.2453792586 | E143: 0.03283919452
C144: 1.584 | D144: 0.2358282837 | E144: 0.03430005214
C145: 1.62 | D145: 0.2266287145 | E145: 0.03578222409
C146: 1.656 | D146: 0.2177706948 | E146: 0.03728449827
C147: 1.692 | D147: 0.2092442502 | E147: 0.038805644
C148: 1.728 | D148: 0.2010393517 | E148: 0.04034441476
C149: 1.764 | D149: 0.1931459705 | E149: 0.04189955091
C150: 1.8 | D150: 0.185554124 | E150: 0.04346978225
C151: 1.836 | D151: 0.1782539152 | E151: 0.0450538306
C152: 1.872 | D152: 0.1712355657 | E152: 0.04665041226
C153: 1.908 | D153: 0.1644894428 | E153: 0.04825824044
C154: 1.944 | D154: 0.1580060827 | E154: 0.04987602749
C155: 1.98 | D155: 0.1517762088 | E155: 0.05150248724
C156: 2.016 | D156: 0.1457907468 | E156: 0.05313633705
C157: 2.052 | D157: 0.1400408366 | E157: 0.05477629996
C158: 2.088 | D158: 0.1345178414 | E158: 0.0564211066
C159: 2.124 | D159: 0.1292133547 | E159: 0.0580694971
C160: 2.16 | D160: 0.1241192046 | E160: 0.0597202229
C161: 2.196 | D161: 0.1192274573 | E161: 0.06137204844
C162: 2.232 | D162: 0.1145304185 | E162: 0.0630237528
C163: 2.268 | D163: 0.110020633 | E163: 0.06467413121
C164: 2.304 | D164: 0.1056908847 | E164: 0.06632199653
C165: 2.34 | D165: =CentralF($C$8,$C$16,C165) -> 0.101534194 | E165: =NonCentralF($C$8,$C$16,$C$15,C165) -> 0.06796618057
C166: =C165+IF($C$18<1/3,$C$98/$C$99,IF($C$18<2/3,$D$98/$C$99,$E$98/$C$99)) -> 2.376 | D166: 0.09754381536 | E166: 0.06960553536
C167: 2.412 | D167: 0.093713234 | E167: 0.07123893438
C168: 2.448 | D168: 0.09003616194 | E168: 0.0728652736
C169: 2.484 | D169: 0.08650653365 | E169: 0.07448347256
C170: 2.52 | D170: 0.08311850128 | E170: 0.07609247524
C171: 2.556 | D171: 0.07986642967 | E171: 0.07769125097
C172: 2.592 | D172: 0.07674489101 | E172: 0.0792787952
C173: 2.628 | D173: 0.07374865945 | E173: 0.08085413018
C174: 2.664 | D174: 0.0708727055 | E174: 0.08241630562
C175: 2.7 | D175: 0.06811219036 | E175: 0.08396439922
C176: 2.736 | D176: 0.06546246024 | E176: 0.08549751719
C177: 2.772 | D177: 0.06291904062 | E177: 0.08701479466
C178: 2.808 | D178: 0.06047763055 | E178: 0.08851539603
C179: 2.844 | D179: 0.058134097 | E179: 0.08999851527
C180: 2.88 | D180: 0.05588446923 | E180: 0.09146337617
C181: 2.916 | D181: 0.05372493324 | E181: 0.0929092325
C182: 2.952 | D182: 0.05165182636 | E182: 0.09433536811
C183: 2.988 | D183: 0.04966163187 | E183: 0.09574109708
C184: 3.024 | D184: 0.04775097378 | E184: 0.09712576362
C185: 3.06 | D185: 0.04591661171 | E185: 0.09848874216
C186: 3.096 | D186: 0.04415543588 | E186: 0.09982943717
C187: 3.132 | D187: 0.04246446223 | E187: 0.1011472831
C188: 3.168 | D188: 0.04084082773 | E188: 0.1024417442
C189: 3.204 | D189: 0.03928178574 | E189: 0.1037123143
C190: 3.24 | D190: 0.03778470154 | E190: 0.1049585167
C191: 3.276 | D191: 0.03634704804 | E191: 0.1061799036
C192: 3.312 | D192: 0.03496640152 | E192: 0.107376056
C193: 3.348 | D193: 0.03364043765 | E193: 0.1085465836
C194: 3.384 | D194: 0.03236692751 | E194: 0.1096911239
C195: 3.42 | D195: 0.03114373382 | E195: 0.1108093422
C196: 3.456 | D196: 0.02996880728 | E196: 0.1119009309
C197: 3.492 | D197: 0.02884018305 | E197: 0.1129656095
C198: 3.528 | D198: 0.02775597733 | E198: 0.1140031236
C199: 3.564 | D199: 0.02671438408 | E199: 0.1150132449
C200: 3.6 | D200: 0.02571367188 | E200: 0.1159957702
C201: 3.636 | D201: 0.02475218086 | E201: 0.1169505215
C202: 3.672 | D202: 0.02382831981 | E202: 0.1178773449
C203: 3.708 | D203: 0.02294056332 | E203: 0.1187761102
C204: 3.744 | D204: 0.02208744913 | E204: 0.1196467108
C205: 3.78 | D205: 0.02126757546 | E205: 0.1204890624
C206: 3.816 | D206: 0.02047959856 | E206: 0.121303103
C207: 3.852 | D207: 0.0197222303 | E207: 0.1220887921
C208: 3.888 | D208: 0.01899423584 | E208: 0.12284611
C209: 3.924 | D209: 0.01829443144 | E209: 0.1235750576
C210: 3.96 | D210: 0.01762168232 | E210: 0.1242756553
C211: 3.996 | D211: 0.01697490063 | E211: 0.1249479427
C212: 4.032 | D212: 0.01635304348 | E212: 0.1255919781
C213: 4.068 | D213: 0.01575511107 | E213: 0.1262078376
C214: 4.104 | D214: 0.0151801449 | E214: 0.1267956148
C215: 4.14 | D215: 0.01462722603 | E215: 0.1273554199
C216: 4.176 | D216: 0.01409547339 | E216: 0.1278873793
C217: 4.212 | D217: 0.01358404228 | E217: 0.1283916351
C218: 4.248 | D218: 0.01309212276 | E218: 0.1288683443
C219: 4.284 | D219: 0.01261893824 | E219: 0.1293176782
C220: 4.32 | D220: 0.01216374407 | E220: 0.1297398222
C221: 4.356 | D221: 0.0117258262 | E221: 0.1301349747
C222: 4.392 | D222: 0.01130449988 | E222: 0.1305033468
C223: 4.428 | D223: 0.01089910847 | E223: 0.1308451619
C224: 4.464 | D224: 0.01050902223 | E224: 0.1311606548
C225: 4.5 | D225: 0.0101336372 | E225: 0.1314500714
C226: 4.536 | D226: 0.009772374125 | E226: 0.1317136681
C227: 4.572 | D227: 0.009424677404 | E227: 0.1319517111
C228: 4.608 | D228: 0.009090014119 | E228: 0.1321644764
C229: 4.644 | D229: =CentralF($C$8,$C$16,C229) -> 0.008767873073 | E229: =NonCentralF($C$8,$C$16,$C$15,C229) -> 0.1323522485
C230: =C229+IF($C$18<1/3,$C$98/$C$99,IF($C$18<2/3,$D$98/$C$99,$E$98/$C$99)) -> 4.68 | D230: 0.008457763881 | E230: 0.1325153207
C231: 4.716 | D231: 0.008159216103 | E231: 0.132653994
C232: 4.752 | D232: 0.007871778409 | E232: 0.1327685769
C233: 4.788 | D233: 0.007595017778 | E233: 0.1328593849
C234: 4.824 | D234: 0.007328518735 | E234: 0.1329267401
C235: 4.86 | D235: 0.00707188262 | E235: 0.1329709705
C236: 4.896 | D236: 0.006824726883 | E236: 0.13299241
C237: 4.932 | D237: 0.006586684417 | E237: 0.1329913974
C238: 4.968 | D238: 0.00635740291 | E238: 0.1329682764
C239: 5.004 | D239: 0.006136544233 | E239: 0.1329233952
C240: 5.04 | D240: 0.005923783852 | E240: 0.1328571058
C241: 5.076 | D241: 0.005718810257 | E241: 0.1327697638
C242: 5.112 | D242: 0.005521324428 | E242: 0.1326617282
C243: 5.148 | D243: 0.005331039315 | E243: 0.1325333606
C244: 5.184 | D244: 0.005147679339 | E244: 0.1323850252
C245: 5.22 | D245: 0.004970979925 | E245: 0.1322170884
C246: 5.256 | D246: 0.00480068704 | E246: 0.1320299183
C247: 5.292 | D247: 0.00463655676 | E247: 0.1318238846
C248: 5.328 | D248: 0.004478354858 | E248: 0.1315993582
C249: 5.364 | D249: 0.004325856395 | E249: 0.1313567107
C250: 5.4 | D250: 0.004178845349 | E250: 0.1310963145
C251: 5.436 | D251: 0.00403711424 | E251: 0.1308185422
C252: 5.472 | D252: 0.003900463782 | E252: 0.1305237664
C253: 5.508 | D253: 0.003768702551 | E253: 0.1302123595
C254: 5.544 | D254: 0.003641646657 | E254: 0.1298846935
C255: 5.58 | D255: 0.00351911944 | E255: 0.1295411397
C256: 5.616 | D256: 0.003400951175 | E256: 0.1291820682
C257: 5.652 | D257: 0.003286978786 | E257: 0.1288078482
C258: 5.688 | D258: 0.003177045579 | E258: 0.1284188474
C259: 5.724 | D259: 0.003071000979 | E259: 0.1280154319
C260: 5.76 | D260: 0.002968700284 | E260: 0.1275979661
C261: 5.796 | D261: 0.002870004426 | E261: 0.1271668123
C262: 5.832 | D262: 0.002774779744 | E262: 0.1267223308
C263: 5.868 | D263: 0.002682897762 | E263: 0.1262648794
C264: 5.904 | D264: 0.002594234982 | E264: 0.1257948135
C265: 5.94 | D265: 0.002508672686 | E265: 0.1253124859
C266: 5.976 | D266: 0.002426096737 | E266: 0.1248182466
C267: 6.012 | D267: 0.002346397398 | E267: 0.1243124426
C268: 6.048 | D268: 0.00226946916 | E268: 0.123795418
C269: 6.084 | D269: 0.002195210563 | E269: 0.1232675136
C270: 6.12 | D270: 0.002123524041 | E270: 0.1227290669
C271: 6.156 | D271: 0.002054315765 | E271: 0.1221804122
C272: 6.192 | D272: 0.001987495493 | E272: 0.1216218799
C273: 6.228 | D273: 0.001922976425 | E273: 0.1210537972
C274: 6.264 | D274: 0.001860675071 | E274: 0.1204764875
C275: 6.3 | D275: 0.001800511115 | E275: 0.1198902702
... 325 more rows

Sheet Power for a performed ANOVA
A1: Choice 5: | B1: Calculation of the power of a performed ANOVA F-test:
B2: Enter the Treatment df from your ANOVA: | C2: 3
B3: Enter the Error df from your ANOVA: | C3: 10
B4: Enter the Treatment MS from your ANOVA: | C4: 5.19 | E4: =IF($C4<$C5,"Power is inappropriate when TMS < EMS","") -> 
B5: Enter the Error MS from your ANOVA: | C5: 0.8
B6: Choose the level of significance for your F-test: | C6: 0.05 | D6: =IF($C7<$C8,"Test is not significant at this level","Test is significant at this level") -> Test is significant at this level
B7: Your Fobs value is: | C7: =C4/C5 -> 6.4875
B8: Your Fcrit value is: | C8: =FINV($C$6,C2,C3) -> 3.708264819
B9: The non-centrality parameter for the ANOVA F-test is: | C9: =(C2*(C4-C5)/C5) -> 16.4625
B10: The power of your F-test is: | C10: =powermd(C9,C2,C3,C8) -> 0.8062272706
E23: F-dist (means equal)
E24: F-dist (means different)
E25: Fcrit
B33: significance level is the area under the blue curve to the right of Fcrit
B35: power is the area under the brown curve to the right of Fcrit
C98: 6 | D98: 12 | E98: 18
C99: 500 | D99: Central F | E99: Non-central F | F99: Red line
C100: 0 | D100: =CentralF($C$2,$C$3,C100) -> 0 | E100: =NonCentralF($C$2,$C$3,$C$9,C100) -> 0 | F100: =$C$8 -> 3.708264819 | G100: 0
C101: =C100+IF($C$10<1/3,$C$98/$C$99,IF($C$10<2/3,$D$98/$C$99,$E$98/$C$99)) -> 0.036 | D101: =CentralF($C$2,$C$3,C101) -> 0.3935250566 | E101: =NonCentralF($C$2,$C$3,$C$9,C101) -> 0.0001503413319 | F101: =$C$8 -> 3.708264819 | G101: =MAX(G102:G103) -> 0.1092565727
C102: =C101+IF($C$10<1/3,$C$98/$C$99,IF($C$10<2/3,$D$98/$C$99,$E$98/$C$99)) -> 0.072 | D102: =CentralF($C$2,$C$3,C102) -> 0.5193805193 | E102: 0.0002739629376 | G102: =NonCentralF($C$2,$C$3,$C$9,F101) -> 0.1092565727
C103: =C102+IF($C$10<1/3,$C$98/$C$99,IF($C$10<2/3,$D$98/$C$99,$E$98/$C$99)) -> 0.108 | D103: 0.5940801757 | E103: 0.0004202794832 | G103: =CentralF($C$2,$C$3,F101) -> 0.03315731294
C104: 0.144 | D104: 0.6411167776 | E104: 0.0005945380472
C105: 0.18 | D105: 0.6703744252 | E105: 0.0007998363159
C106: 0.216 | D106: 0.6872737479 | E106: 0.001038630225
C107: 0.252 | D107: 0.6952088116 | E107: 0.001313053541
C108: 0.288 | D108: 0.6964789251 | E108: 0.001625012019
C109: 0.324 | D109: 0.6927235747 | E109: 0.00197621475
C110: 0.36 | D110: 0.6851536309 | E110: 0.002368184412
C111: 0.396 | D111: 0.6746861168 | E111: 0.002802259915
C112: 0.432 | D112: 0.6620283461 | E112: 0.003279596504
C113: 0.468 | D113: 0.6477333021 | E113: 0.003801165411
C114: 0.504 | D114: 0.6322376402 | E114: 0.004367753962
C115: 0.54 | D115: 0.6158886537 | E115: 0.004979966533
C116: 0.576 | D116: 0.5989639374 | E116: 0.005638226501
C117: 0.612 | D117: 0.5816860513 | E117: 0.006342779197
C118: 0.648 | D118: 0.5642336627 | E118: 0.007093695851
C119: 0.684 | D119: 0.5467501453 | E119: 0.007890878428
C120: 0.72 | D120: 0.529350304 | E120: 0.008734065281
C121: 0.756 | D121: 0.5121256946 | E121: 0.009622837519
C122: 0.792 | D122: 0.4951488697 | E122: 0.01055662599
C123: 0.828 | D123: 0.4784767992 | E123: 0.01153471879
C124: 0.864 | D124: 0.4621536415 | E124: 0.01255626916
C125: 0.9 | D125: 0.4462130055 | E125: 0.01362030378
C126: 0.936 | D126: 0.4306798044 | E126: 0.01472573124
C127: 0.972 | D127: 0.4155717833 | E127: 0.01587135069
C128: 1.008 | D128: 0.4009007814 | E128: 0.01705586064
C129: 1.044 | D129: 0.3866737798 | E129: 0.01827786771
C130: 1.08 | D130: 0.3728937723 | E130: 0.01953589539
C131: 1.116 | D131: 0.3595604921 | E131: 0.02082839266
C132: 1.152 | D132: 0.3466710176 | E132: 0.02215374259
C133: 1.188 | D133: 0.3342202801 | E133: 0.02351027059
C134: 1.224 | D134: 0.3222014878 | E134: 0.02489625257
C135: 1.26 | D135: 0.3106064815 | E135: 0.02630992282
C136: 1.296 | D136: 0.2994260324 | E136: 0.02774948159
C137: 1.332 | D137: 0.2886500908 | E137: 0.02921310237
C138: 1.368 | D138: 0.2782679951 | E138: 0.0306989389
C139: 1.404 | D139: 0.268268646 | E139: 0.0322051318
C140: 1.44 | D140: 0.2586406511 | E140: 0.03372981486
C141: 1.476 | D141: 0.2493724464 | E141: 0.03527112105
C142: 1.512 | D142: 0.2404523957 | E142: 0.03682718808
C143: 1.548 | D143: 0.2318688738 | E143: 0.03839616365
C144: 1.584 | D144: 0.223610334 | E144: 0.0399762104
C145: 1.62 | D145: 0.2156653635 | E145: 0.0415655104
C146: 1.656 | D146: 0.2080227282 | E146: 0.04316226939
C147: 1.692 | D147: 0.2006714081 | E147: 0.04476472066
C148: 1.728 | D148: 0.1936006258 | E148: 0.04637112854
C149: 1.764 | D149: 0.1867998682 | E149: 0.04797979163
C150: 1.8 | D150: 0.1802589026 | E150: 0.04958904575
C151: 1.836 | D151: 0.173967789 | E151: 0.05119726648
C152: 1.872 | D152: 0.1679168876 | E152: 0.05280287148
C153: 1.908 | D153: 0.1620968638 | E153: 0.05440432258
C154: 1.944 | D154: 0.1564986906 | E154: 0.05600012748
C155: 1.98 | D155: 0.151113648 | E155: 0.05758884132
C156: 2.016 | D156: 0.1459333216 | E156: 0.05916906793
C157: 2.052 | D157: 0.140949599 | E157: 0.0607394609
C158: 2.088 | D158: 0.1361546651 | E158: 0.0622987244
C159: 2.124 | D159: 0.1315409967 | E159: 0.06384561383
C160: 2.16 | D160: 0.1271013559 | E160: 0.0653789363
C161: 2.196 | D161: 0.1228287834 | E161: 0.06689755082
C162: 2.232 | D162: 0.1187165908 | E162: 0.06840036849
C163: 2.268 | D163: 0.1147583531 | E163: 0.06988635244
C164: 2.304 | D164: 0.1109479005 | E164: 0.0713545176
C165: 2.34 | D165: =CentralF($C$2,$C$3,C165) -> 0.1072793101 | E165: =NonCentralF($C$2,$C$3,$C$9,C165) -> 0.07280393043
C166: 2.376 | D166: 0.1037468982 | E166: 0.0742337085
C167: =C166+IF($C$10<1/3,$C$98/$C$99,IF($C$10<2/3,$D$98/$C$99,$E$98/$C$99)) -> 2.412 | D167: 0.1003452114 | E167: 0.07564301988
C168: 2.448 | D168: 0.09706901907 | E168: 0.07703108256
C169: 2.484 | D169: 0.09391330477 | E169: 0.07839716371
C170: 2.52 | D170: 0.09087325846 | E170: 0.07974057884
C171: 2.556 | D171: 0.08794426866 | E171: 0.08106069092
C172: 2.592 | D172: 0.08512191471 | E172: 0.08235690945
C173: 2.628 | D173: 0.08240195934 | E173: 0.08362868945
C174: 2.664 | D174: 0.07978034136 | E174: 0.08487553037
C175: 2.7 | D175: 0.07725316856 | E175: 0.08609697503
C176: 2.736 | D176: 0.07481671087 | E176: 0.08729260848
C177: 2.772 | D177: 0.0724673937 | E177: 0.08846205679
C178: 2.808 | D178: 0.07020179151 | E178: 0.08960498592
C179: 2.844 | D179: 0.06801662163 | E179: 0.09072110046
C180: 2.88 | D180: 0.06590873823 | E180: 0.09181014243
C181: 2.916 | D181: 0.06387512662 | E181: 0.09287189003
C182: 2.952 | D182: 0.06191289766 | E182: 0.09390615641
C183: 2.988 | D183: 0.06001928247 | E183: 0.0949127884
C184: 3.024 | D184: 0.05819162724 | E184: 0.09589166529
C185: 3.06 | D185: 0.05642738841 | E185: 0.0968426976
C186: 3.096 | D186: 0.05472412785 | E186: 0.09776582579
C187: 3.132 | D187: 0.05307950841 | E187: 0.09866101912
C188: 3.168 | D188: 0.05149128955 | E188: 0.09952827435
C189: 3.204 | D189: 0.04995732316 | E189: 0.1003676146
C190: 3.24 | D190: 0.04847554963 | E190: 0.1011790883
C191: 3.276 | D191: 0.04704399398 | E191: 0.1019627676
C192: 3.312 | D192: 0.04566076227 | E192: 0.1027187477
C193: 3.348 | D193: 0.04432403804 | E193: 0.1034471456
C194: 3.384 | D194: 0.04303207902 | E194: 0.1041480989
C195: 3.42 | D195: 0.04178321389 | E195: 0.1048217648
C196: 3.456 | D196: 0.04057583928 | E196: 0.1054683189
C197: 3.492 | D197: 0.03940841678 | E197: 0.1060879545
C198: 3.528 | D198: 0.03827947018 | E198: 0.1066808813
C199: 3.564 | D199: 0.03718758281 | E199: 0.1072473246
C200: 3.6 | D200: 0.03613139494 | E200: 0.1077875243
C201: 3.636 | D201: 0.03510960138 | E201: 0.1083017338
C202: 3.672 | D202: 0.03412094914 | E202: 0.1087902197
C203: 3.708 | D203: 0.03316423518 | E203: 0.1092532601
C204: 3.744 | D204: 0.03223830427 | E204: 0.1096911445
C205: 3.78 | D205: 0.031342047 | E205: 0.1101041725
C206: 3.816 | D206: 0.0304743978 | E206: 0.1104926533
C207: 3.852 | D207: 0.02963433308 | E207: 0.110856905
C208: 3.888 | D208: 0.02882086946 | E208: 0.1111972534
C209: 3.924 | D209: 0.02803306206 | E209: 0.111514032
C210: 3.96 | D210: 0.02727000289 | E210: 0.1118075807
C211: 3.996 | D211: 0.0265308193 | E211: 0.1120782456
C212: 4.032 | D212: 0.02581467248 | E212: 0.1123263779
C213: 4.068 | D213: 0.02512075608 | E213: 0.1125523341
C214: 4.104 | D214: 0.0244482948 | E214: 0.1127564745
C215: 4.14 | D215: 0.02379654313 | E215: 0.1129391633
C216: 4.176 | D216: 0.02316478412 | E216: 0.1131007677
C217: 4.212 | D217: 0.02255232818 | E217: 0.1132416577
C218: 4.248 | D218: 0.02195851196 | E218: 0.1133622055
C219: 4.284 | D219: 0.02138269724 | E219: 0.1134627848
C220: 4.32 | D220: 0.02082426995 | E220: 0.1135437709
C221: 4.356 | D221: 0.02028263912 | E221: 0.1136055397
C222: 4.392 | D222: 0.01975723598 | E222: 0.1136484678
C223: 4.428 | D223: 0.01924751305 | E223: 0.1136729319
C224: 4.464 | D224: 0.01875294325 | E224: 0.1136793081
C225: 4.5 | D225: 0.01827301909 | E225: 0.1136679725
C226: 4.536 | D226: 0.01780725187 | E226: 0.1136392998
C227: 4.572 | D227: 0.01735517094 | E227: 0.1135936637
C228: 4.608 | D228: 0.01691632297 | E228: 0.1135314364
C229: 4.644 | D229: =CentralF($C$2,$C$3,C229) -> 0.01649027124 | E229: =NonCentralF($C$2,$C$3,$C$9,C229) -> 0.1134529884
C230: 4.68 | D230: 0.01607659498 | E230: 0.1133586882
C231: =C230+IF($C$10<1/3,$C$98/$C$99,IF($C$10<2/3,$D$98/$C$99,$E$98/$C$99)) -> 4.716 | D231: 0.01567488875 | E231: 0.1132489018
C232: 4.752 | D232: 0.01528476184 | E232: 0.1131239932
C233: 4.788 | D233: 0.01490583763 | E233: 0.1129843232
C234: 4.824 | D234: 0.01453775312 | E234: 0.1128302502
C235: 4.86 | D235: 0.01418015832 | E235: 0.1126621292
C236: 4.896 | D236: 0.01383271578 | E236: 0.1124803123
C237: 4.932 | D237: 0.01349510008 | E237: 0.1122851479
C238: 4.968 | D238: 0.01316699739 | E238: 0.112076981
C239: 5.004 | D239: 0.01284810497 | E239: 0.1118561531
C240: 5.04 | D240: 0.0125381308 | E240: 0.1116230017
C241: 5.076 | D241: 0.01223679311 | E241: 0.1113778606
C242: 5.112 | D242: 0.01194382003 | E242: 0.1111210594
C243: 5.148 | D243: 0.0116589492 | E243: 0.1108529238
C244: 5.184 | D244: 0.01138192737 | E244: 0.1105737752
C245: 5.22 | D245: 0.01111251011 | E245: 0.1102839307
C246: 5.256 | D246: 0.01085046142 | E246: 0.1099837032
C247: 5.292 | D247: 0.01059555347 | E247: 0.1096734013
C248: 5.328 | D248: 0.01034756623 | E248: 0.1093533289
C249: 5.364 | D249: 0.01010628721 | E249: 0.1090237855
C250: 5.4 | D250: 0.009871511188 | E250: 0.1086850663
C251: 5.436 | D251: 0.009643039907 | E251: 0.1083374617
C252: 5.472 | D252: 0.009420681835 | E252: 0.1079812575
C253: 5.508 | D253: 0.009204251913 | E253: 0.1076167351
C254: 5.544 | D254: 0.008993571311 | E254: 0.1072441711
C255: 5.58 | D255: 0.0087884672 | E255: 0.1068638375
C256: 5.616 | D256: 0.008588772531 | E256: 0.1064760018
C257: 5.652 | D257: 0.008394325824 | E257: 0.1060809266
C258: 5.688 | D258: 0.008204970965 | E258: 0.10567887
C259: 5.724 | D259: 0.008020557004 | E259: 0.1052700856
C260: 5.76 | D260: 0.007840937977 | E260: 0.1048548221
C261: 5.796 | D261: 0.007665972719 | E261: 0.1044333239
C262: 5.832 | D262: 0.00749552469 | E262: 0.1040058306
C263: 5.868 | D263: 0.007329461814 | E263: 0.1035725772
C264: 5.904 | D264: 0.007167656314 | E264: 0.1031337944
C265: 5.94 | D265: 0.007009984561 | E265: 0.1026897081
C266: 5.976 | D266: 0.006856326923 | E266: 0.10224054
C267: 6.012 | D267: 0.006706567626 | E267: 0.1017865071
C268: 6.048 | D268: 0.006560594617 | E268: 0.1013278221
C269: 6.084 | D269: 0.00641829943 | E269: 0.1008646933
C270: 6.12 | D270: 0.006279577063 | E270: 0.1003973246
C271: 6.156 | D271: 0.006144325855 | E271: 0.09992591583
C272: 6.192 | D272: 0.006012447369 | E272: 0.09945066224
C273: 6.228 | D273: 0.005883846278 | E273: 0.09897175506
C274: 6.264 | D274: 0.005758430261 | E274: 0.0984893813
C275: 6.3 | D275: 0.005636109895 | E275: 0.09800372386
C276: 6.336 | D276: 0.005516798556 | E276: 0.09751496154
C277: 6.372 | D277: 0.005400412324 | E277: 0.09702326915
C278: 6.408 | D278: 0.005286869889 | E278: 0.09652881749
C279: 6.444 | D279: 0.00517609246 | E279: 0.09603177346
C280: 6.48 | D280: 0.005068003683 | E280: 0.09553230006
C281: 6.516 | D281: 0.004962529555 | E281: 0.09503055649
C282: 6.552 | D282: 0.004859598345 | E282: 0.09452669817
... 318 more rows
